bitfinex/quotes_ETHUSD_20251206
["timestamp","ask_amount","ask_price","bid_price","bid_amount"]
[1765038087020,26.57695034,3051.2,3051.1,0.001]
[1765038087205,12.67310351,3051.2,3051.1,0.001]
[1765038087408,12.15510351,3051.2,3051.1,0.001]
[1765038087632,27.17310351,3051.2,3051.1,0.001]
[1765038088724,26.14959951,3051.2,3051.1,0.001]
[1765038089028,11.97194633,3051.2,3051.1,0.001]
[1765038089240,12.45184633,3051.2,3051.1,0.001]
[1765038091125,11.93384633,3051.2,3051.1,0.001]
[1765038091321,12.45184633,3051.2,3051.1,0.001]
[1765038091635,11.93384633,3051.2,3051.1,0.001]
[1765038091941,11.45394633,3051.2,3051.1,0.001]
[1765038092113,11.97194633,3051.2,3051.1,0.001]
[1765038092536,19.23828194,3051.2,3051.1,0.001]
[1765038092735,18.72028194,3051.2,3051.1,0.001]
[1765038092928,19.23828194,3051.2,3051.1,0.001]
[1765038093327,19.36954072,3051.2,3051.1,0.001]
[1765038096044,33.86954072,3051.2,3051.1,0.001]
[1765038098945,37.32054072,3051.2,3051.1,0.001]
[1765038099111,33.86954072,3051.2,3051.1,0.001]
[1765038099312,33.35154072,3051.2,3051.1,0.001]
[1765038099527,33.86954072,3051.2,3051.1,0.001]
[1765038100045,33.35154072,3051.2,3051.1,0.001]
[1765038100233,33.86954072,3051.2,3051.1,0.001]
[1765038104440,33.35154072,3051.2,3051.1,0.001]
[1765038104648,33.86954072,3051.2,3051.1,0.001]
[1765038108977,33.81954072,3051.2,3051.1,0.001]
[1765038117367,32.39684072,3051.2,3051.1,0.001]
[1765038117665,32.91484072,3051.2,3051.1,0.001]
[1765038117855,33.33244072,3051.2,3051.1,0.001]
[1765038118038,33.81944072,3051.2,3051.1,0.001]
[1765038118240,9.65739905,3051.2,3051.1,1.1172]
[1765038118435,10.17539905,3051.2,3051.1,1.1172]
[1765038118658,10.90099316,3051.2,3051.1,1.1172]
[1765038122371,6.38,3051.2,3051.1,1.1172]
[1765038122552,0.49150515,3051.3,3051.1,1.1172]
[1765038122876,1.00950515,3051.6,3051.2,0.9615]
[1765038123058,10.14823075,3051.9,3051.5,0.4875]
[1765038123259,0.49150515,3051.6,3051.3,0.91614805]
[1765038123770,0.49150515,3051.6,3051.5,0.4875]
[1765038123970,0.49150515,3051.6,3051.5,0.9615]
[1765038125076,0.49150515,3051.6,3051.5,4.23857684]
[1765038125246,6.87150515,3051.9,3051.5,4.70664933]
[1765038125449,6.87150515,3051.9,3051.8,0.4875]
[1765038125973,6.87150515,3051.9,3051.8,0.9615]
[1765038128076,6.38,3051.9,3051.8,0.9615]
[1765038129068,0.49150515,3052.1,3051.8,4.2382547]
[1765038129279,0.49150515,3052.1,3052.0,0.4863]
[1765038129651,0.49150515,3052.3,3052.0,0.9688]
[1765038129987,0.49150515,3052.3,3052.2,0.6675]
[1765038130293,0.49150515,3052.3,3052.2,1.15]
[1765038130451,6.87150515,3052.5,3052.2,1.15]
[1765038130780,0.49150515,3052.3,3052.2,0.1812]
[1765038131170,0.49150515,3052.3,3052.2,1.15]
[1765038131961,0.49150515,3052.3,3052.2,4.42632527]
[1765038132161,0.49150515,3052.3,3052.2,5.19660976]
[1765038133466,0.49150515,3052.3,3052.2,1.92028449]
[1765038133780,0.49150515,3052.3,3052.2,5.19660976]
[1765038134785,0.49150515,3052.5,3052.2,8.47293503]
[1765038135082,0.49150515,3052.5,3052.4,0.4863]
[1765038135275,0.49150515,3052.5,3052.4,1.3335935]
[1765038135472,0.49150515,3052.5,3052.4,1.8160935]
[1765038135654,0.002,3052.6,3052.4,1.8160935]
[1765038135858,0.002,3052.6,3052.5,0.9688]
[1765038136673,0.002,3052.6,3052.5,4.24480327]
[1765038136864,0.002,3052.6,3052.5,5.13077473]
[1765038140087,0.002,3052.6,3052.5,5.62227988]
[1765038141788,0.002,3052.9,3052.6,15.682835]
[1765038141955,0.002,3052.9,3052.8,0.4863]
[1765038142161,0.002,3052.9,3052.5,0.88597146]
[1765038142362,0.49150515,3052.8,3052.5,3.75844993]
[1765038142593,0.91990515,3052.6,3052.4,0.1311456]
[1765038142771,0.0049,3052.5,3052.2,3.2762529]
[1765038143089,0.49150515,3052.3,3052.1,3.76793777]
[1765038143292,0.49150515,3052.3,3052.2,0.4825]
[1765038143596,0.49150515,3052.6,3052.2,1.73961644]
[1765038143886,0.49150515,3052.4,3052.2,0.77081644]
[1765038144685,0.49150515,3052.4,3052.3,0.4863]
[1765038144990,0.49150515,3052.4,3052.3,3.76251793]
[1765038147294,0.49150515,3052.4,3052.3,4.24501793]
[1765038148966,0.49150515,3052.8,3052.3,8.39961307]
[1765038149166,0.002,3052.9,3052.7,0.4863]
[1765038149489,0.49150515,3052.8,3052.6,3.27585433]
[1765038149688,0.49150515,3052.8,3052.7,3.27578864]
[1765038149890,0.49150515,3052.8,3052.7,0.4863]
[1765038151471,0.49150515,3052.8,3052.5,3.27590951]
[1765038151472,0.91990515,3052.8,3052.5,3.27590951]
[1765038151667,0.49150515,3052.6,3052.5,3.27590951]
[1765038151868,0.49150515,3052.6,3052.5,4.11635924]
[1765038152175,0.49150515,3052.6,3052.5,4.60265924]
[1765038152491,0.49150515,3052.6,3052.5,5.08515924]
[1765038152687,0.49150515,3052.8,3052.5,5.08515924]
[1765038152995,0.49150515,3052.8,3052.7,0.4863]
[1765038154403,0.49150515,3052.8,3052.7,0.9688]
[1765038155873,0.49150515,3052.8,3052.7,4.24458864]
[1765038156700,0.49150515,3052.8,3052.7,3.76208864]
[1765038156877,0.002,3052.9,3052.7,1.80489479]
[1765038157080,1.40850515,3052.8,3052.4,3.27609484]
[1765038157405,0.49150515,3052.6,3052.4,3.27609484]
[1765038157602,0.4236,3052.5,3052.2,0.518]
[1765038157906,0.49150515,3052.4,3052.2,0.518]
[1765038158107,0.49150515,3052.4,3052.2,0.73424052]
[1765038158477,0.49150515,3052.4,3052.3,3.27621252]
[1765038158803,0.49150515,3052.6,3052.3,3.76251252]
[1765038159005,0.49150515,3052.6,3052.5,0.4966]
[1765038159217,0.94620515,3052.6,3052.3,3.27621252]
[1765038160410,0.49150515,3052.4,3052.3,3.27621252]
[1765038162611,0.49150515,3052.4,3052.3,4.24451252]
[1765038162782,0.49150515,3052.4,3052.3,5.08282034]
[1765038166389,0.49150515,3052.4,3052.3,4.61112034]
[1765038167696,0.49150515,3052.4,3052.3,5.08282034]
[1765038168511,0.49150515,3052.6,3052.3,5.08282034]
[1765038168710,0.49150515,3052.6,3052.5,0.4966]
[1765038170380,0.49150515,3052.6,3052.3,3.27617729]
[1765038170577,0.49150515,3052.4,3052.3,3.27617729]
[1765038170810,0.49150515,3052.4,3052.3,4.01576122]
[1765038171011,0.49150515,3052.4,3052.3,4.51236122]
[1765038173307,0.002,3052.9,3052.3,12.08119708]
[1765038173485,0.002,3052.9,3052.8,0.4782]
[1765038173815,0.002,3052.9,3052.8,3.75388134]
[1765038173987,0.002,3052.9,3052.8,4.95624828]
[1765038174214,0.002,3052.9,3052.8,4.45684828]
[1765038174387,0.002,3052.9,3052.8,4.95624828]
[1765038175894,0.4198,3052.9,3052.4,3.27610823]
[1765038176092,0.49150515,3052.8,3052.3,1.25658393]
[1765038176415,0.49150515,3052.8,3052.7,3.27578864]
[1765038176915,0.91000515,3052.8,3052.7,3.27578864]
[1765038178116,0.91000515,3052.8,3052.4,6.5522212]
[1765038178321,1.40500515,3052.8,3052.5,0.83082051]
[1765038181907,1.40500515,3052.8,3052.6,3.27589595]
[1765038182296,0.002,3052.9,3052.7,0.4782]
[1765038182491,0.002,3052.9,3052.8,0.4782]
[1765038184328,0.002,3052.9,3052.8,3.75388134]
[1765038184524,0.4198,3052.9,3052.7,3.27573776]
[1765038184728,0.4185,3052.8,3052.7,3.27573776]
[1765038185310,0.002,3052.9,3052.8,3.27568134]
[1765038186134,0.9155,3052.9,3052.6,3.27581176]
[1765038186331,0.4152,3052.7,3052.6,3.27581176]
[1765038186523,0.4152,3052.7,3052.4,6.55219513]
[1765038186830,0.4152,3052.7,3052.4,7.05159513]
[1765038187033,0.49150515,3052.8,3052.5,0.83081791]
[1765038188433,0.49150515,3052.8,3052.6,3.27589595]
[1765038189937,0.8787,3052.7,3052.3,0.517]
[1765038190229,0.90550515,3052.4,3052.2,3.27626392]
[1765038190654,0.0432,3052.3,3052.1,3.2764176]
[1765038190804,0.0432,3052.3,3052.1,3.99736425]
[1765038191223,0.4103,3052.2,3052.1,3.99736425]
[1765038191602,1.00850515,3052.8,3052.1,8.23549687]
[1765038191603,0.49150515,3052.8,3052.1,8.23549687]
[1765038191805,0.49350515,3052.9,3052.2,0.9617]
[1765038192120,0.002,3052.9,3052.8,0.4863]
[1765038192502,0.002,3052.9,3052.8,0.9617]
[1765038192719,0.002,3052.9,3052.8,4.23738134]
[1765038195315,0.002,3052.9,3052.8,3.76198134]
[1765038195938,0.002,3052.9,3052.8,4.23738134]
[1765038196242,0.002,3052.9,3052.8,5.36797742]
[1765038196611,0.002,3052.9,3052.8,4.89257742]
[1765038197521,0.64,3052.9,3052.8,1.13059608]
[1765038197723,7.41247611,3052.9,3051.6,0.6738]
[1765038197924,0.49150515,3052.2,3051.6,1.1908]
[1765038198131,0.49150515,3052.2,3051.7,3.27686207]
[1765038198653,0.95240515,3052.2,3051.7,3.75226207]
[1765038199233,0.95240515,3052.2,3051.7,7.02912414]
[1765038199530,0.95240515,3052.4,3051.7,7.02912414]
[1765038200448,0.95240515,3052.4,3051.8,0.4754]
[1765038201263,0.95240515,3052.4,3051.9,3.27664733]
[1765038201544,0.49150515,3052.2,3051.9,3.27664733]
[1765038204473,0.4456,3052.0,3051.9,3.27664733]
[1765038205016,0.49150515,3052.4,3051.9,7.69493362]
[1765038205219,0.49150515,3052.4,3052.1,3.27643262]
[1765038205459,4.74523193,3052.7,3052.1,3.27643262]
[1765038205460,0.95240515,3052.7,3052.1,3.27643262]
[1765038205757,0.49150515,3052.7,3052.3,0.4863]
[1765038206325,0.95240515,3052.7,3052.3,0.4863]
[1765038207758,0.95240515,3052.7,3052.2,0.6432]
[1765038207759,0.002,3052.9,3052.6,0.4863]
[1765038208050,0.4456,3052.7,3052.3,3.27617388]
[1765038208353,0.0046,3052.5,3052.3,3.9314219]
[1765038209222,0.49150515,3052.4,3052.2,3.27630636]
[1765038209425,0.50050515,3052.3,3051.7,0.1984]
[1765038209732,0.92820515,3052.1,3051.8,3.27675398]
[1765038210331,0.0132,3051.9,3051.8,3.27675398]
[1765038210748,0.95240515,3052.1,3051.8,3.76305398]
[1765038210932,0.49150515,3052.1,3051.8,3.76305398]
[1765038211347,0.95240515,3052.3,3051.8,3.76305398]
[1765038211525,0.95240515,3052.3,3051.8,4.71113887]
[1765038212024,0.95240515,3052.3,3051.8,7.98789357]
[1765038212225,0.95240515,3052.3,3051.8,4.71113887]
[1765038212754,0.95240515,3052.3,3051.8,7.98789357]
[1765038213766,0.49150515,3052.1,3051.8,4.23573887]
[1765038214450,0.95240515,3052.1,3051.8,4.23573887]
[1765038214754,0.4609,3052.7,3052.0,0.4863]
[1765038214954,0.49150515,3052.6,3052.2,0.4863]
[1765038215456,0.95240515,3052.6,3052.2,0.4863]
[1765038215775,0.49150515,3052.7,3052.5,0.4863]
[1765038217070,0.49350515,3052.9,3052.6,0.4863]
[1765038217276,1.82251702,3052.9,3052.4,3.27607259]
[1765038217441,0.49150515,3052.7,3052.4,3.27607259]
[1765038218080,0.49150515,3052.7,3052.2,3.75171146]
[1765038218251,0.4609,3052.8,3052.3,0.4754]
[1765038218575,0.49150515,3052.7,3052.2,3.27631146]
[1765038219183,0.49150515,3052.7,3052.3,0.4731]
[1765038220483,0.49150515,3052.5,3052.1,0.6848]
[1765038220651,0.0042,3052.2,3052.1,0.517]
[1765038220975,0.49150515,3052.5,3052.1,0.517]
[1765038221146,0.49150515,3052.5,3052.1,4.26648058]
[1765038222263,0.97390515,3052.5,3052.1,4.26648058]
[1765038223075,0.49150515,3052.5,3052.1,4.26648058]
[1765038223284,0.49150515,3052.5,3052.1,5.03959233]
[1765038223489,0.97390515,3052.5,3052.1,4.56649233]
[1765038227966,0.4824,3052.4,3052.1,4.56649233]
[1765038228160,0.4243,3052.2,3051.9,3.27658762]
[1765038228365,0.49150515,3052.1,3051.9,3.27664733]
[1765038228562,0.49150515,3052.1,3051.9,6.55329466]
[1765038228766,0.49150515,3052.7,3052.1,3.27643262]
[1765038229063,0.49150515,3052.5,3052.2,0.464]
[1765038229966,0.95100515,3052.3,3052.1,3.27643262]
[1765038231283,0.95100515,3052.3,3051.9,6.55327252]
[1765038231489,0.49150515,3052.3,3052.2,0.464]
[1765038234101,0.49150515,3052.5,3052.2,0.464]
[1765038234261,0.97390515,3052.5,3052.2,0.464]
[1765038234882,0.97390515,3052.5,3052.2,3.74029435]
[1765038235674,0.49150515,3052.5,3052.2,3.74029435]
[1765038235872,0.49150515,3052.7,3052.2,4.21339435]
[1765038236079,0.97390515,3052.7,3052.2,4.21339435]
[1765038236384,0.97390515,3052.7,3052.2,7.48971962]
[1765038236591,0.97390515,3052.7,3052.2,7.01661962]
[1765038236887,0.97390515,3052.7,3052.6,0.464]
[1765038236888,0.49150515,3052.7,3052.6,0.464]
[1765038237800,0.002,3052.9,3052.6,0.464]
[1765038237997,0.49150515,3052.7,3052.6,0.464]
[1765038240394,0.49150515,3052.8,3052.6,0.464]
[1765038241498,0.4254,3052.7,3052.4,0.4731]
[1765038241701,0.49150515,3052.6,3052.4,0.4731]
[1765038243504,0.49150515,3052.6,3052.2,3.27632527]
[1765038243672,0.49150515,3052.6,3052.2,3.77272527]
[1765038244002,0.49150515,3052.6,3052.3,0.4964]
[1765038246407,0.49150515,3052.6,3052.3,3.77259869]
[1765038247710,0.4579,3052.4,3052.1,0.517]
[1765038247905,0.94940515,3052.2,3051.5,1.0134]
[1765038248074,0.49150515,3052.0,3051.6,3.27694104]
[1765038248403,0.49150515,3052.0,3051.6,3.77334104]
[1765038248607,0.49150515,3052.0,3051.7,0.4964]
[1765038248905,0.49150515,3052.0,3051.7,1.27616924]
[1765038249106,0.49150515,3052.2,3051.5,4.02437614]
[1765038249307,0.4726,3051.8,3051.5,4.02437614]
[1765038249527,0.4726,3051.8,3051.6,3.27694641]
[1765038250196,0.93200515,3052.0,3051.6,3.27694641]
[1765038250393,0.93200515,3052.0,3051.7,0.4916]
[1765038251905,0.49150515,3052.0,3051.6,3.27694641]
[1765038252203,0.4408,3051.9,3051.6,3.27694641]
[1765038252409,0.94310515,3052.0,3051.6,3.27694641]
[1765038253006,0.94310515,3052.0,3051.7,3.27685823]
[1765038253505,0.94310515,3052.0,3051.6,3.27696945]
[1765038253714,0.49150515,3052.2,3051.9,0.4916]
[1765038253874,0.49150515,3052.0,3051.9,0.4916]
[1765038254082,0.49150515,3052.2,3052.1,0.4916]
[1765038255683,0.95280515,3052.2,3051.9,3.27656489]
[1765038264415,0.49150515,3052.2,3052.1,0.4916]
[1765038264615,0.1874,3052.9,3052.1,0.4916]
[1765038264795,0.639,3052.9,3052.3,0.4916]
[1765038265110,0.67183224,3052.9,3052.3,1.0086]
[1765038265286,0.4516,3052.8,3052.3,1.0086]
[1765038265692,0.4617,3052.4,3052.3,0.517]
[1765038266015,0.94310515,3052.8,3052.3,0.517]
[1765038266206,0.49150515,3052.6,3052.3,1.0086]
[1765038266406,0.49150515,3052.6,3052.4,3.2761106]
[1765038267312,0.49150515,3052.6,3052.3,4.2847953]
[1765038267815,0.94310515,3052.6,3052.3,4.2847953]
[1765038268728,0.95320515,3052.4,3052.3,0.517]
[1765038268935,1.14283618,3052.4,3051.4,0.1881]
[1765038269103,1.14283618,3052.4,3051.5,7.07115368]
[1765038269104,0.49150515,3052.1,3051.5,7.07115368]
[1765038269428,0.49150515,3052.0,3051.5,7.07115368]
[1765038269732,0.49150515,3052.0,3051.6,0.77348537]
[1765038270132,0.49150515,3052.0,3051.7,3.27686207]
[1765038270529,0.4516,3051.9,3051.7,3.27686207]
[1765038270830,0.4617,3051.8,3051.6,3.27688399]
[1765038271512,0.4516,3052.1,3051.7,0.4916]
[1765038271915,0.49150515,3052.0,3051.7,0.4916]
[1765038272439,0.49150515,3052.0,3051.7,3.76845773]
[1765038272737,0.94310515,3052.0,3051.7,3.76845773]
[1765038273668,0.49150515,3052.0,3051.7,4.24405773]
[1765038273943,0.49150515,3052.4,3051.9,0.4916]
[1765038274118,0.49150515,3052.6,3052.3,0.4916]
[1765038274517,0.49150515,3052.8,3052.5,0.4916]
[1765038274931,0.49150515,3052.8,3052.7,0.4916]
[1765038275305,0.95320515,3052.8,3052.5,0.4756]
[1765038275632,0.49150515,3052.7,3052.6,0.4756]
[1765038275929,0.49150515,3052.7,3052.4,0.4756]
[1765038276129,0.49150515,3052.7,3052.6,0.4916]
[1765038276705,0.49150515,3052.7,3052.6,3.76749595]
[1765038276900,0.49350515,3052.9,3052.6,4.24309595]
[1765038276901,0.002,3052.9,3052.6,4.24309595]
[1765038277106,0.002,3052.9,3052.8,0.4916]
[1765038278140,0.002,3052.9,3052.8,0.9672]
[1765038278313,0.002,3052.9,3052.8,1.71909919]
[1765038279106,0.002,3052.9,3052.8,4.99478053]
[1765038286020,0.002,3052.9,3052.8,4.98936053]
[1765038287080,0.002,3052.9,3052.8,11.26452773]
[1765038287218,0.002,3052.9,3052.8,4.98466053]
[1765038288221,0.002,3052.9,3052.8,4.51376053]
[1765038288859,0.002,3052.9,3052.8,4.98466053]
[1765038289262,0.002,3052.9,3052.8,4.51376053]
[1765038289582,0.002,3052.9,3052.8,3.75858134]
[1765038290867,0.002,3052.9,3052.8,4.22948134]
[1765038291544,0.002,3052.9,3052.8,5.22869771]
[1765038294668,0.002,3052.9,3052.8,4.75779771]
[1765038295742,0.002,3052.9,3052.8,5.22869771]
[1765038296073,0.002,3052.9,3052.8,7.099625]
[1765038296571,0.002,3052.9,3052.8,7.82521911]
[1765038296952,0.002,3052.9,3052.8,7.95632388]
[1765038297154,0.002,3052.9,3052.8,26.95079588]
[1765038298275,0.002,3052.9,3052.8,28.32400688]
[1765038299475,0.002,3052.9,3052.8,29.05980688]
[1765038300076,0.002,3052.9,3052.8,28.51868588]
[1765038301380,0.002,3052.9,3052.8,17.35378388]
[1765038301579,0.002,3052.9,3052.8,15.69085571]
[1765038301780,0.002,3052.9,3052.8,22.37622691]
[1765038302088,0.002,3052.9,3052.8,16.49979096]
[1765038302286,0.002,3052.9,3052.8,37.19288116]
[1765038302682,0.002,3052.9,3052.8,36.78944991]
[1765038303289,0.002,3052.9,3052.8,38.81675591]
[1765038303884,0.002,3052.9,3052.8,38.57305591]
[1765038304288,0.002,3052.9,3052.8,38.59122691]
[1765038305492,0.002,3052.9,3052.8,38.59132691]
[1765038306166,0.002,3052.9,3052.8,16.29939571]
[1765038306487,0.002,3052.9,3052.8,13.17157871]
[1765038306892,0.912,3052.9,3052.8,3.40678611]
[1765038307095,0.4213,3052.9,3052.8,3.40678611]
[1765038307390,0.002,3052.9,3052.8,16.38968142]
[1765038307975,0.002,3052.9,3052.8,14.09159142]
[1765038308157,0.002,3052.9,3052.8,13.71629142]
[1765038308489,0.002,3052.9,3052.8,5.04498022]
[1765038309586,0.002,3052.9,3052.8,4.58598022]
[1765038312787,0.4347,3052.9,3052.8,4.13238022]
[1765038312994,0.9079,3052.9,3052.8,4.13238022]
[1765038313194,0.4347,3052.9,3052.8,4.13238022]
[1765038313489,1.0943,3052.9,3052.8,4.13238022]
[1765038313695,1.0943,3052.9,3052.8,4.00127545]
[1765038314092,1.0943,3052.9,3052.8,3.27568134]
[1765038314496,0.002,3052.9,3052.8,3.27568134]
[1765038315010,0.002,3052.9,3052.8,3.73718134]
[1765038315182,0.002,3052.9,3052.8,4.20918134]
[1765038317299,0.002,3052.9,3052.8,3.73718134]
[1765038317504,0.002,3052.9,3052.8,3.27568134]
[1765038317803,0.002,3052.9,3052.8,3.73718134]
[1765038319305,0.002,3052.9,3052.8,4.20918134]
[1765038319893,0.002,3052.9,3052.8,3.73718134]
[1765038321006,0.002,3052.9,3052.8,4.20918134]
[1765038322188,0.002,3052.9,3052.8,7.10886068]
[1765038322504,0.002,3052.9,3052.8,28.9450947]
[1765038323278,0.002,3052.9,3052.8,29.4195577]
[1765038324112,0.002,3052.9,3052.8,28.6660257]
[1765038326330,0.002,3052.9,3052.8,29.6145827]
[1765038327333,0.002,3052.9,3052.8,29.6070677]
[1765038328031,0.002,3052.9,3052.8,20.7571957]
[1765038328457,0.002,3052.9,3052.8,33.1235107]
[1765038329821,0.002,3052.9,3052.8,31.9770437]
[1765038331229,0.002,3052.9,3052.8,11.3762177]
[1765038331435,0.002,3052.9,3052.8,11.6749507]
[1765038331615,0.002,3052.9,3052.8,10.0996037]
[1765038331815,0.002,3052.9,3052.8,10.5716037]
[1765038332324,0.002,3052.9,3052.8,7.7074627]
[1765038332535,0.002,3052.9,3052.8,12.5038077]
[1765038333648,0.4384,3052.9,3052.8,5.17534972]
[1765038333843,0.002,3052.9,3052.8,3.86826849]
[1765038334049,0.002,3052.9,3052.8,7.9864146]
[1765038336062,0.002,3052.9,3052.8,20.5194526]
[1765038336224,0.002,3052.9,3052.8,15.1179016]
[1765038336556,0.002,3052.9,3052.8,15.17991247]
[1765038336740,0.002,3052.9,3052.8,18.03245505]
[1765038337052,0.002,3052.9,3052.8,10.54922205]
[1765038337952,0.002,3052.9,3052.8,10.07722205]
[1765038338154,0.002,3052.9,3052.8,11.45822205]
[1765038338323,0.002,3052.9,3052.8,10.98922205]
[1765038339133,0.002,3052.9,3052.8,14.54523305]
[1765038339864,0.002,3052.9,3052.8,15.8363683]
[1765038340172,0.002,3052.9,3052.8,39.2050553]
[1765038343372,0.002,3052.9,3052.8,35.4016763]
[1765038344067,0.002,3052.9,3052.8,34.8365893]
[1765038345273,0.002,3052.9,3052.8,38.3804013]
[1765038346473,0.002,3052.9,3052.8,39.2050553]
[1765038347281,0.002,3052.9,3052.8,35.4749353]
[1765038347691,0.002,3052.9,3052.8,33.2124413]
[1765038347865,0.4771,3052.9,3052.8,17.4541133]
[1765038348070,0.4771,3052.9,3052.8,4.6493626]
[1765038348369,0.4771,3052.9,3052.8,11.0184006]
[1765038348774,0.002,3052.9,3052.8,11.4788006]
[1765038349371,0.002,3052.9,3052.8,21.4332262]
[1765038350488,0.002,3052.9,3052.8,23.7926442]
[1765038350658,0.002,3052.9,3052.8,26.98080973]
[1765038351360,0.002,3052.9,3052.8,28.57518473]
[1765038352292,0.002,3052.9,3052.8,31.70987373]
[1765038353865,0.002,3052.9,3052.8,26.31479273]
[1765038354205,0.4212,3052.9,3052.8,25.47929173]
[1765038354380,0.4212,3052.9,3052.8,9.17220973]
[1765038354563,0.002,3052.9,3052.8,22.73383873]
[1765038354773,0.002,3052.9,3052.8,23.19423873]
[1765038355201,0.9114,3052.9,3052.8,14.00555873]
[1765038355385,0.9114,3052.9,3052.8,13.543896]
[1765038355603,0.4219,3052.9,3052.8,11.196297]
[1765038356485,0.4219,3052.9,3052.8,13.433912]
[1765038357481,0.8962,3052.9,3052.8,11.288912]
[1765038357791,0.8962,3052.9,3052.8,10.791912]
[1765038358890,1.0882,3052.9,3052.8,10.08500147]
[1765038359089,1.0882,3052.9,3052.8,9.7289826]
[1765038360305,1.0882,3052.9,3052.8,4.6493626]
[1765038360511,1.0882,3052.9,3052.8,7.1120616]
[1765038360709,1.0882,3052.9,3052.8,4.6493626]
[1765038362422,1.0882,3052.9,3052.8,0.517]
[1765038362614,1.0882,3052.9,3052.6,3.27589595]
[1765038362810,1.0882,3052.9,3052.7,6.27592564]
[1765038362811,0.4743,3052.8,3052.7,6.27592564]
[1765038363018,0.9041,3052.8,3052.7,6.27592564]
[1765038365125,0.9041,3052.8,3052.7,9.55171428]
[1765038365524,0.4298,3052.8,3052.7,10.01922915]
[1765038365695,0.4298,3052.8,3052.7,10.92332915]
[1765038366227,0.002,3052.9,3052.7,11.38112915]
[1765038366726,0.002,3052.9,3052.8,18.25164898]
[1765038367616,0.002,3052.9,3052.8,25.19102332]
[1765038368402,0.002,3052.9,3052.8,37.272211]
[1765038368602,0.002,3052.9,3052.8,41.3974]
[1765038370122,0.002,3052.9,3052.8,42.3666]
[1765038370323,0.002,3052.9,3052.8,44.08186753]
[1765038370537,0.002,3052.9,3052.8,22.03784753]
[1765038370834,0.002,3052.9,3052.8,39.31287053]
[1765038371413,0.002,3052.9,3052.8,38.81997053]
[1765038371613,0.002,3052.9,3052.8,21.54494753]
[1765038371841,0.002,3052.9,3052.8,39.11516753]
[1765038372340,0.002,3052.9,3052.8,37.31065653]
[1765038372731,0.002,3052.9,3052.8,40.43947353]
[1765038373233,0.002,3052.9,3052.8,40.93237353]
[1765038373846,0.002,3053.2,3053.1,37.40529195]
[1765038374044,0.002,3053.2,3053.1,40.71567035]
[1765038374339,0.4486,3053.2,3053.1,38.83826635]
[1765038374541,0.002,3053.2,3053.1,36.2616775]
[1765038374742,0.002,3053.2,3053.1,39.4819805]
[1765038374910,0.002,3053.2,3053.1,42.32811397]
[1765038375715,0.002,3053.2,3053.1,43.08480297]
[1765038376735,0.002,3053.2,3053.1,42.35967097]
[1765038377840,0.002,3053.2,3053.1,42.58406497]
[1765038378149,0.002,3053.2,3053.1,42.08209697]
[1765038378746,0.002,3053.2,3053.1,15.96331897]
[1765038378965,0.002,3053.2,3053.1,42.18919697]
[1765038379723,0.002,3053.2,3053.1,45.64311897]
[1765038380023,0.002,3053.2,3053.1,46.13601897]
[1765038380424,0.4486,3053.2,3053.1,34.10221397]
[1765038380854,0.4486,3053.2,3053.1,34.11291397]
[1765038381954,0.002,3053.2,3053.1,35.56455697]
[1765038383056,0.002,3053.2,3053.1,39.66270397]
[1765038384899,0.002,3053.2,3053.1,39.64974797]
[1765038385459,0.002,3053.9,3053.4,31.13109811]
[1765038385663,10.22,3055.5,3053.4,31.13109811]
[1765038385664,0.003,3055.3,3054.5,0.405504]
[1765038385852,0.003,3055.3,3055.1,0.72559411]
[1765038386169,0.4573,3055.2,3055.1,6.79119384]
[1765038386352,0.8686,3055.2,3055.1,6.79119384]
[1765038386547,0.8686,3055.2,3055.1,0.517]
[1765038386847,0.4113,3055.2,3055.1,6.79119384]
[1765038387047,0.003,3055.3,3055.1,34.26020122]
[1765038387281,0.003,3055.3,3055.2,25.609745]
[1765038387778,0.4148,3055.3,3055.2,25.609745]
[1765038388483,0.003,3055.3,3055.2,28.88285314]
[1765038389058,0.003,3055.3,3055.2,29.36885314]
[1765038389390,0.003,3055.3,3055.2,31.4362468]
[1765038389891,0.003,3055.3,3055.2,32.56734491]
[1765038391190,0.003,3055.3,3055.2,25.90609391]
[1765038391393,0.8711,3055.3,3055.2,29.56715575]
[1765038391566,0.4143,3055.3,3055.2,29.56715575]
[1765038391964,0.4143,3055.3,3055.2,29.16165175]
[1765038392164,0.8711,3055.3,3055.2,28.91698675]
[1765038392581,0.4143,3055.3,3055.2,18.71403975]
[1765038393490,0.8711,3055.3,3055.2,12.85728975]
[1765038393698,0.8711,3055.3,3055.1,0.67911938]
[1765038393881,0.8711,3055.3,3055.1,3.27321527]
[1765038393882,0.4619,3055.2,3055.1,3.27321527]
[1765038394091,0.4619,3055.2,3055.1,3.79021527]
[1765038401705,0.0046,3055.2,3055.1,3.79021527]
[1765038402919,0.4899,3055.2,3055.1,3.79021527]
[1765038406941,0.4899,3055.2,3055.1,3.77126527]
[1765038408447,0.4899,3055.2,3053.3,10.82553954]
[1765038408651,0.3791,3055.0,3054.3,10.881309]
[1765038408826,0.3791,3055.0,3054.4,0.517]
[1765038409036,0.65,3054.9,3054.4,0.517]
[1765038409336,0.4178,3054.5,3054.4,0.517]
[1765038409859,0.458,3054.8,3054.4,2.17834788]
[1765038410139,0.458,3054.8,3054.4,3.79093574]
[1765038410339,0.4182,3054.5,3054.4,3.79093574]
[1765038410726,0.8758,3054.5,3054.4,3.79093574]
[1765038411659,0.4182,3054.5,3054.4,3.79093574]
[1765038415314,0.8758,3054.5,3054.4,3.79093574]
[1765038418042,0.4182,3054.5,3054.4,3.79093574]
[1765038418424,0.6492,3054.9,3054.4,7.06490116]
[1765038418645,0.4697,3054.8,3054.4,7.06490116]
[1765038418932,0.4697,3055.1,3054.7,6.27419384]
[1765038419148,0.4697,3055.1,3054.8,0.517]
[1765038419349,0.003,3055.3,3055.0,0.4984]
[1765038419538,0.003,3055.3,3055.1,3.27321527]
[1765038419876,0.4727,3055.3,3055.1,3.27321527]
[1765038420165,0.4156,3055.2,3055.1,3.27321527]